fUST/lending_fUST_20250422
["ID","MTS","AMOUNT","RATE_DAILY","PERIOD"]
[358608892,1745309450831,-501.44044594,0.00022191,2]
[358608893,1745309450841,-312.368064,0.00022191,7]
[358608894,1745309450851,-500.0,0.00022191,2]
[358608895,1745309450861,-312.368064,0.00022191,7]
[358608896,1745309450871,-500.0,0.00022191,2]
[358608897,1745309450881,-500.0,0.00022191,2]
[358608898,1745309450890,-500.0,0.00022191,2]
[358608899,1745309450900,-504.1950519,0.00022191,2]
[358608900,1745309450910,-229.05436689,0.00022191,2]
[358608901,1745309450920,-500.0,0.00022191,2]
[358608902,1745309450929,-500.0,0.00022191,2]
[358608903,1745309450939,-500.0,0.00022191,2]
[358608904,1745309450948,-823.1,0.00022191,2]
[358608905,1745309450959,-430.47101598,0.00022191,2]
[358608906,1745309450969,-151.0,0.00022191,7]
[358608907,1745309450979,-151.0,0.00022191,7]
[358608908,1745309450988,-534.82241297,0.00022191,2]
[358608909,1745309450999,-500.0,0.00022191,2]
[358608910,1745309451009,-500.0,0.00022191,2]
[358608911,1745309451019,-500.0,0.00022191,2]
[358608912,1745309451028,-500.0,0.00022191,2]
[358608913,1745309451039,-500.0,0.00022191,2]
[358608914,1745309451049,-500.0,0.00022191,2]
[358608915,1745309451058,-500.0,0.00022191,2]
[358608916,1745309451067,-861.377032,0.00022191,7]
[358608917,1745309451077,-861.377032,0.00022191,7]
[358608918,1745309451086,-500.0,0.00022191,2]
[358608919,1745309451096,-500.0,0.00022191,2]
[358608920,1745309451106,-500.0,0.00022191,2]
[358608921,1745309451116,-500.0,0.00022191,2]
[358608922,1745309451126,-861.377032,0.00022191,7]
[358608923,1745309451136,-861.377032,0.00022191,7]
[358608924,1745309451145,-529.154868,0.00022191,7]
[358608925,1745309451154,-500.0,0.00022191,2]
[358608926,1745309451165,-529.154868,0.00022191,7]
[358608927,1745309451175,-529.154868,0.00022191,7]
[358608928,1745309451184,-500.9594006,0.00022191,2]
[358608929,1745309451195,-529.154868,0.00022191,7]
[358608930,1745309451205,-515.88,0.00022191,2]
[358608931,1745309451214,-505.39067021,0.00022191,2]
[358608932,1745309451225,-500.0,0.00022191,2]
[358608933,1745309451235,-500.0,0.00022191,2]
[358608934,1745309451244,-500.0,0.00022191,2]
[358608935,1745309451254,-500.0,0.00022191,2]
[358608936,1745309451264,-1374.05,0.00022191,2]
[358608937,1745309451274,-500.0,0.00022191,2]
[358608938,1745309451284,-500.0,0.00022191,2]
[358608939,1745309451293,-502.60782368,0.00022191,2]
[358608940,1745309451303,-500.0,0.00022191,2]
[358608941,1745309451313,-500.0,0.00022191,2]
[358608942,1745309451322,-500.0,0.00022191,2]
[358608943,1745309451332,-500.0,0.00022191,2]
[358608944,1745309451343,-1084.11,0.00022191,2]
[358608945,1745309451354,-500.0,0.00022191,2]
[358608946,1745309451364,-500.0,0.00022191,2]
[358608947,1745309451374,-626.69,0.00022191,2]
[358608948,1745309451384,-500.61,0.00022191,2]
[358608949,1745309451394,-500.0,0.00022191,2]
[358608950,1745309451404,-500.0,0.00022191,2]
[358608951,1745309451413,-758.02,0.00022191,2]
[358608952,1745309451423,-500.0,0.00022191,2]
[358608953,1745309451433,-500.0,0.00022191,2]
[358608954,1745309451444,-500.0,0.00022191,2]
[358608955,1745309451454,-825.53,0.00022191,2]
[358608956,1745309451464,-500.0,0.00022191,2]
[358608957,1745309451474,-500.0,0.00022191,2]
[358608958,1745309451485,-500.0,0.00022191,2]
[358608959,1745309451495,-465.30779957,0.00022191,2]
[358608960,1745309451505,-151.0,0.00022191,7]
[358608961,1745309451515,-195.03961695,0.00022191,2]
[358608962,1745309451525,-500.0,0.00022191,2]
[358608963,1745309451535,-500.0,0.00022191,2]
[358608964,1745309451546,-151.0,0.00022191,7]
[358608965,1745309451556,-500.0,0.00022191,2]
[358608966,1745309451566,-500.0,0.00022191,2]
[358608967,1745309451576,-500.0,0.00022191,2]
[358608968,1745309451586,-382.213737,0.00022191,7]
[358608969,1745309451596,-503.57834202,0.00022191,2]
[358608970,1745309451606,-500.0,0.00022191,2]
[358608971,1745309451616,-500.0,0.00022191,2]
[358608972,1745309451625,-382.213737,0.00022191,7]
[358608973,1745309451635,-641.23420433,0.00022191,2]
[358608974,1745309451644,-500.0,0.00022191,2]
[358608975,1745309451654,-504.40342907,0.00022191,2]
[358608976,1745309451664,-500.0,0.00022191,2]
[358608977,1745309451674,-501.47375915,0.00022191,2]
[358608978,1745309451683,-500.0,0.00022191,2]
[358608979,1745309451693,-508.662506,0.00022191,7]
[358608980,1745309451704,-501.27530045,0.00022191,2]
[358608981,1745309451714,-297.68606911,0.00022191,2]
[358608982,1745309451723,-500.0,0.00022191,2]
[358608983,1745309451733,-508.662506,0.00022191,7]
[358608984,1745309451744,-500.0,0.00022191,2]
[358608985,1745309451753,-500.0,0.00022191,2]
[358608986,1745309451763,-500.0,0.00022191,2]
[358608987,1745309451773,-1000.0,0.00022191,2]
[358608988,1745309451782,-893.19,0.00022191,2]
[358608989,1745309451793,-500.0,0.00022191,2]
[358608990,1745309451803,-505.89638131,0.00022191,2]
[358608991,1745309451813,-500.0,0.00022191,2]
[358608992,1745309451822,-500.0,0.00022191,2]
[358608993,1745309451832,-500.0,0.00022191,2]
[358608994,1745309451842,-500.0,0.00022191,2]
[358608995,1745309451852,-500.0,0.00022191,2]
[358608996,1745309451862,-500.0,0.00022191,2]
[358608997,1745309451873,-354.94054532,0.00022191,2]
[358608998,1745309451882,-500.0,0.00022191,2]
[358608999,1745309451892,-500.0,0.00022191,2]
[358609000,1745309451902,-500.0,0.00022191,2]
[358609001,1745309451911,-523.57532026,0.00022191,2]
[358609002,1745309451921,-522.73806549,0.00022191,2]
[358609003,1745309451931,-500.0,0.00022191,2]
[358609004,1745309451940,-500.0,0.00022191,2]
[358609005,1745309451951,-500.0,0.00022191,2]
[358609006,1745309451963,-510.96321179,0.00022191,2]
[358609007,1745309451973,-500.0,0.00022191,2]
[358609008,1745309451983,-1740.71,0.00022191,2]
[358609009,1745309451992,-835.59,0.00022191,2]
[358609010,1745309452106,-500.0,0.00022191,2]
[358609011,1745309452124,-522.11463725,0.00022191,2]
[358609012,1745309452134,-501.38540952,0.00022191,2]
[358609013,1745309452144,-500.0,0.00022191,2]
[358609014,1745309452153,-505.44133215,0.00022191,2]
[358609015,1745309452163,-575.40364894,0.00022191,2]
[358609016,1745309452173,-500.0,0.00022191,2]
[358609017,1745309452182,-500.0,0.00022191,2]
[358609018,1745309452192,-500.0,0.00022191,2]
[358609019,1745309452202,-500.0,0.00022191,2]
[358609020,1745309452212,-500.0,0.00022191,2]
[358609021,1745309452222,-500.0,0.00022191,2]
[358609022,1745309452231,-516.92861511,0.00022191,2]
[358609023,1745309452241,-729.1,0.00022191,2]
[358609024,1745309452250,-500.0,0.00022191,2]
[358609025,1745309452259,-500.0,0.00022191,2]
[358609026,1745309452269,-510.75952544,0.00022191,2]
[358609027,1745309452278,-500.0,0.00022191,2]
[358609028,1745309452289,-775.14,0.00022191,2]
[358609029,1745309452298,-506.0403614,0.00022191,2]
[358609030,1745309452308,-151.0,0.00022191,7]
[358609031,1745309452318,-151.0,0.00022191,7]
[358609032,1745309452328,-154.781681,0.00022191,7]
[358609033,1745309452339,-500.0,0.00022191,2]
[358609034,1745309452350,-154.781681,0.00022191,7]
[358609035,1745309452360,-500.0,0.00022191,2]
[358609036,1745309452370,-154.781681,0.00022191,7]
[358609037,1745309452380,-506.74475939,0.00022191,2]
[358609038,1745309452391,-154.781681,0.00022191,7]
[358609039,1745309452401,-505.49541606,0.00022191,2]
[358609040,1745309452411,-500.0,0.00022191,2]
[358609041,1745309452422,-500.0,0.00022191,2]
[358609042,1745309452432,-500.0,0.00022191,2]
[358609043,1745309452442,-511.22,0.00022191,2]
[358609044,1745309452452,-788.54,0.00022191,2]
[358609045,1745309452461,-472.10003317,0.00022191,2]
[358609046,1745309452471,-507.77435248,0.00022191,2]
[358609047,1745309452481,-500.0,0.00022191,2]
[358609048,1745309452491,-500.0,0.00022191,2]
[358609049,1745309452501,-500.0,0.00022191,2]
[358609050,1745309452511,-936.2,0.00022191,2]
[358609051,1745309452520,-511.32462147,0.00022191,2]
[358609052,1745309452530,-526.1639601,0.00022191,2]
[358609053,1745309452540,-500.0,0.00022191,2]
[358609054,1745309452550,-1720.830185,0.00022191,7]
[358609055,1745309452560,-1720.830185,0.00022191,7]
[358609056,1745309452571,-153.11154786,0.00022191,2]
[358609057,1745309452581,-509.47946963,0.00022191,2]
[358609058,1745309452591,-1720.830185,0.00022191,7]
[358609059,1745309452601,-1720.830185,0.00022191,7]
[358609060,1745309452611,-500.0,0.00022191,2]
[358609061,1745309452621,-501.74325227,0.00022191,2]
[358609062,1745309452631,-500.0,0.00022191,2]
[358609063,1745309452642,-202.039798,0.00022191,7]
[358609064,1745309452652,-202.039798,0.00022191,7]
[358609065,1745309452661,-550.52652958,0.00022191,2]
[358609066,1745309452671,-500.0,0.00022191,2]
[358609067,1745309452682,-9507.54,0.00022191,2]
[358609068,1745309452691,-536.2,0.00022191,2]
[358609069,1745309452701,-202.039798,0.00022191,7]
[358609070,1745309452711,-202.039798,0.00022191,7]
[358609071,1745309452720,-500.0,0.00022191,2]
[358609072,1745309452731,-1227.453755,0.00022191,7]
[358609073,1745309452740,-500.0,0.00022191,2]
[358609074,1745309452750,-262.01414729,0.00022191,2]
[358609075,1745309452761,-411.438072,0.00022191,7]
[358609076,1745309452771,-411.438072,0.00022191,7]
[358609077,1745309452781,-500.0,0.00022191,2]
[358609078,1745309452791,-500.0,0.00022191,2]
[358609079,1745309452801,-1227.453755,0.00022191,7]
[358609080,1745309452811,-411.438072,0.00022191,7]
[358609081,1745309452831,-536.42,0.00022191,2]
[358609082,1745309452854,-411.438072,0.00022191,7]
[358609083,1745309452872,-505.94375769,0.00022191,2]
[358609084,1745309452893,-500.0,0.00022191,2]
[358609085,1745309452914,-500.0,0.00022191,2]
[358609086,1745309452937,-500.0,0.00022191,2]
[358609087,1745309452955,-500.0,0.00022191,2]
[358609088,1745309452974,-500.0,0.00022191,2]
[358609089,1745309452992,-502.01569707,0.00022191,2]
[358609090,1745309453006,-505.86602557,0.00022191,2]
[358609091,1745309453023,-500.0,0.00022191,2]
[358609092,1745309453041,-500.0,0.00022191,2]
[358609093,1745309453061,-500.0,0.00022191,2]
[358609094,1745309453081,-502.81229629,0.00022191,2]
[358609095,1745309453093,-500.0,0.00022191,2]
[358609096,1745309453112,-500.0,0.00022191,2]
[358609097,1745309453131,-528.8990711,0.00022191,2]
[358609098,1745309453146,-225.36507192,0.00022191,2]
[358609099,1745309453164,-500.0,0.00022191,2]
[358609100,1745309453178,-544.91929539,0.00022191,2]
[358609101,1745309453193,-151.0,0.00022191,7]
[358609102,1745309453209,-375.43719084,0.00022191,2]
[358609103,1745309453226,-500.0,0.00022191,2]
[358609104,1745309453242,-151.0,0.00022191,7]
[358609105,1745309453258,-151.0,0.00022191,7]
[358609106,1745309453274,-500.0,0.00022191,2]
[358609107,1745309453293,-500.0,0.00022191,2]
[358609108,1745309453308,-500.0,0.00022191,2]
[358609109,1745309453325,-156.655618,0.00022191,7]
[358609110,1745309453340,-500.0,0.00022191,2]
[358609111,1745309453357,-500.0,0.00022191,2]
[358609112,1745309453372,-1015.13,0.00022191,2]
[358609113,1745309453388,-500.0,0.00022191,2]
[358609114,1745309453405,-514.79736689,0.00022191,2]
[358609115,1745309453421,-500.0,0.00022191,2]
[358609116,1745309453436,-500.0,0.00022191,2]
[358609117,1745309453452,-500.0,0.00022191,2]
[358609118,1745309453468,-519.05085048,0.00022191,2]
[358609119,1745309453485,-500.0,0.00022191,2]
[358609120,1745309453501,-500.0,0.00022191,2]
[358609121,1745309453517,-500.0,0.00022191,2]
[358609122,1745309453532,-511.22809179,0.00022191,2]
[358609123,1745309453549,-500.0,0.00022191,2]
[358609124,1745309453566,-500.0,0.00022191,2]
[358609125,1745309453582,-500.0,0.00022191,2]
[358609126,1745309453599,-500.0,0.00022191,2]
[358609127,1745309453614,-500.0,0.00022191,2]
[358609128,1745309453631,-500.0,0.00022191,2]
[358609129,1745309453647,-500.0,0.00022191,2]
[358609130,1745309453663,-500.0,0.00022191,2]
[358609131,1745309453680,-783.97,0.00022191,2]
[358609132,1745309453697,-681.96,0.00022191,2]
[358609133,1745309453712,-500.0,0.00022191,2]
[358609134,1745309453730,-500.0,0.00022191,2]
[358609135,1745309453740,-500.0,0.00022191,2]
[358609136,1745309453750,-500.0,0.00022191,2]
[358609137,1745309453760,-189.04572447,0.00022191,2]
[358609138,1745309453770,-500.0,0.00022191,2]
[358609139,1745309453779,-433.37118254,0.00022191,2]
[358609140,1745309453789,-507.10692706,0.00022191,2]
[358609141,1745309453798,-500.0,0.00022191,2]
[358609142,1745309453808,-506.51546758,0.00022191,2]
[358609143,1745309453818,-500.0,0.00022191,2]
[358609144,1745309453827,-6304.72,0.00022191,2]
[358609145,1745309453838,-500.0,0.00022191,2]
[358609146,1745309453847,-500.0,0.00022191,2]
[358609147,1745309453858,-160.0,0.00022191,7]
[358609148,1745309453868,-151.0,0.00022191,7]
[358609149,1745309453878,-151.0,0.00022191,7]
[358609150,1745309454064,-500.0,0.00022191,2]
[358609151,1745309454148,-600.62,0.00022191,2]
[358609152,1745309454163,-504.75229508,0.00022191,2]
[358609153,1745309454174,-500.0,0.00022191,2]
[358609154,1745309454184,-500.0,0.00022191,2]
[358609155,1745309454194,-500.0,0.00022191,2]
[358609156,1745309454204,-151.0,0.00022191,2]
[358609157,1745309454213,-151.0,0.00022191,2]
[358609158,1745309454223,-500.0,0.00022191,2]
[358609159,1745309454233,-500.0,0.00022191,2]
[358609160,1745309454243,-598.40945778,0.00022191,2]
[358609161,1745309454252,-751.11,0.00022191,2]
[358609162,1745309454262,-500.0,0.00022191,2]
[358609163,1745309454271,-500.0,0.00022191,2]
[358609164,1745309454281,-500.0,0.00022191,2]
[358609165,1745309454291,-500.0,0.00022191,2]
[358609166,1745309454300,-500.0,0.00022191,2]
[358609167,1745309454310,-500.0,0.00022191,2]
[358609168,1745309454319,-516.49821,0.00022191,7]
[358609169,1745309454329,-516.49821,0.00022191,7]
[358609170,1745309454339,-516.49821,0.00022191,7]
[358609171,1745309454348,-153.81906,0.00022191,7]
[358609172,1745309454358,-500.0,0.00022191,2]
[358609173,1745309454368,-500.0,0.00022191,2]
[358609174,1745309454377,-516.49821,0.00022191,7]
[358609175,1745309454387,-2228.55,0.00022191,2]
[358609176,1745309454396,-516.49821,0.00022191,7]
[358609177,1745309454407,-516.49821,0.00022191,7]
[358609178,1745309454416,-500.0,0.00022191,2]
[358609179,1745309454426,-705.42,0.00022191,2]
[358609180,1745309454436,-500.0,0.00022191,2]
[358609181,1745309454446,-197.513673,0.00022191,7]
[358609182,1745309454456,-251.69769,0.00022191,2]
[358609183,1745309454466,-500.0,0.00022191,2]
[358609184,1745309454476,-723.610947,0.00022191,7]
[358609185,1745309454485,-723.610947,0.00022191,7]
[358609186,1745309454495,-729.16666667,0.00022191,7]
[358609187,1745309454505,-500.0,0.00022191,2]
[358609188,1745309454514,-723.610947,0.00022191,7]
[358609189,1745309454524,-723.610947,0.00022191,7]
[358609190,1745309454534,-500.0,0.00022191,2]
[358609191,1745309454544,-500.0,0.00022191,2]
[358609192,1745309454554,-572.47,0.00022191,2]
[358609193,1745309454564,-500.0,0.00022191,2]
[358609194,1745309454574,-645.33139018,0.00022191,2]
[358609195,1745309454584,-1647.31,0.00022191,2]
[358609196,1745309454593,-500.0,0.00022191,2]
[358609197,1745309454604,-694.6,0.00022191,2]
[358609198,1745309454613,-500.0,0.00022191,2]
[358609199,1745309454624,-500.0,0.00022191,2]
[358609200,1745309454634,-1530.94,0.00022191,2]
[358609201,1745309454644,-500.0,0.00022191,2]
[358609202,1745309454654,-500.0,0.00022191,2]
[358609203,1745309454664,-500.0,0.00022191,2]
[358609204,1745309454675,-501.13848683,0.00022191,2]
[358609205,1745309454684,-500.0,0.00022191,2]
[358609206,1745309454694,-500.0,0.00022191,2]
[358609207,1745309454704,-500.0,0.00022191,2]
[358609208,1745309454713,-500.0,0.00022191,2]
[358609209,1745309454723,-500.0,0.00022191,2]
[358609210,1745309454733,-500.0,0.00022191,2]
[358609211,1745309454742,-500.0,0.00022191,2]
[358609212,1745309454752,-500.0,0.00022191,2]
[358609213,1745309454762,-661.39,0.00022191,2]
[358609214,1745309454771,-500.0,0.00022191,2]
[358609215,1745309454780,-500.0,0.00022191,2]
[358609216,1745309454790,-512.12030299,0.00022191,2]
[358609217,1745309454800,-500.0,0.00022191,2]
[358609218,1745309454810,-4985.83,0.00022191,2]
[358609219,1745309454819,-500.0,0.00022191,2]
[358609220,1745309454829,-1842.35,0.00022191,2]
[358609221,1745309454838,-1436.46,0.00022191,2]
[358609222,1745309454848,-500.0,0.00022191,2]
[358609223,1745309454859,-500.0,0.00022191,2]
[358609224,1745309454869,-500.0,0.00022191,2]
[358609225,1745309454878,-500.0,0.00022191,2]
[358609226,1745309454888,-500.0,0.00022191,2]
[358609227,1745309454897,-500.0,0.00022191,2]
[358609228,1745309454907,-506.93384636,0.00022191,2]
[358609229,1745309454917,-967.36,0.00022191,2]
[358609230,1745309454926,-500.0,0.00022191,2]
[358609231,1745309454937,-151.0,0.00022191,7]
[358609232,1745309454947,-151.0,0.00022191,7]
[358609233,1745309454957,-590.430408,0.00022191,2]
[358609234,1745309454971,-151.0,0.00022191,7]
[358609235,1745309454981,-590.430408,0.00022191,2]
[358609236,1745309454990,-500.0,0.00022191,2]
[358609237,1745309455001,-640.26016646,0.00022191,2]
[358609238,1745309455010,-162.928061,0.00022191,7]
[358609239,1745309455020,-590.430408,0.00022191,2]
[358609240,1745309455029,-590.430408,0.00022191,2]
[358609241,1745309455040,-500.0,0.00022191,2]
[358609242,1745309455050,-500.0,0.00022191,2]
[358609243,1745309455060,-151.0,0.00022191,7]
[358609244,1745309455069,-500.0,0.00022191,2]
[358609245,1745309455080,-151.0,0.00022191,7]
[358609246,1745309455089,-500.0,0.00022191,2]
[358609247,1745309455099,-500.0,0.00022191,2]
[358609248,1745309455111,-151.0,0.00022191,7]
[358609249,1745309455120,-151.0,0.00022191,7]
[358609250,1745309455130,-500.0,0.00022191,2]
[358609251,1745309455139,-500.0,0.00022191,2]
[358609252,1745309455150,-500.0,0.00022191,2]
[358609253,1745309455159,-500.0,0.00022191,2]
[358609254,1745309455169,-500.0,0.00022191,2]
[358609255,1745309455179,-500.0,0.00022191,2]
[358609256,1745309455198,-151.0,0.00022191,7]
[358609257,1745309455209,-151.0,0.00022191,7]
[358609258,1745309455219,-151.0,0.00022191,7]
[358609259,1745309455230,-500.0,0.00022191,2]
[358609260,1745309455240,-780.82,0.00022191,2]
[358609261,1745309455250,-536.28286628,0.00022191,2]
[358609262,1745309455260,-500.0,0.00022191,2]
[358609263,1745309455271,-151.0,0.000222,5]
[358609264,1745309455280,-151.0,0.000222,6]
[358609265,1745309455290,-671.00194889,0.00022221,2]
[358609266,1745309455300,-151.0,0.000223,5]
[358609267,1745309455311,-151.0,0.000223,9]
[358609268,1745309455321,-12570.97479393,0.00022362,2]
[358609269,1745309455330,-160.0,0.00022362,2]
[358609270,1745309455340,-160.0,0.00022362,2]
[358609271,1745309455350,-420.73667954,0.00022362,2]
[358609272,1745309455361,-160.0,0.00022362,2]
[358609273,1745309455370,-160.0,0.00022362,2]
[358609274,1745309455380,-151.0,0.00022362,7]
[358609275,1745309455391,-151.0,0.00022362,7]
[358609276,1745309455401,-160.0,0.00022362,2]
[358609277,1745309455411,-160.0,0.00022362,2]
[358609278,1745309455421,-160.0,0.00022362,2]
[358609279,1745309455431,-729.16666667,0.00022362,2]
[358609280,1745309455441,-151.0,0.000224,8]
[358609281,1745309455451,-2700.7,0.000224,8]
[358609282,1745309455461,-2700.7,0.000224,8]
[358609283,1745309455471,-2700.7,0.000224,8]
[358609284,1745309455481,-2700.7,0.000224,8]
[358609285,1745309455490,-2700.7,0.000224,8]
[358609286,1745309455500,-151.0,0.000224,5]
[358609287,1745309455511,-151.0,0.000224,7]
[358609288,1745309455520,-151.0,0.000224,7]
[358609289,1745309455531,-151.0,0.000224,7]
[358609290,1745309455542,-382.213737,0.000224,7]
[358609291,1745309455553,-382.213737,0.000224,7]
[358609292,1745309455563,-508.662506,0.000224,7]
[358609293,1745309455573,-508.662506,0.000224,7]
[358609294,1745309455584,-154.781681,0.000224,7]
[358609295,1745309455593,-154.781681,0.000224,7]
[358609296,1745309455606,-1720.830185,0.000224,7]
[358609297,1745309455616,-1720.830185,0.000224,7]
[358609298,1745309455626,-202.039798,0.000224,7]
[358609299,1745309455637,-202.039798,0.000224,7]
[358609300,1745309455647,-1227.453755,0.000224,7]
[358609301,1745309455657,-1227.453755,0.000224,7]
[358609302,1745309455668,-177.38996013,0.00022464,2]
[358609303,1745309455680,-12067.44975715,0.00022464,2]
[358609304,1745309455690,-151.0,0.00022464,7]
[358609305,1745309455700,-151.0,0.00022464,2]
[358609306,1745309455710,-723.610947,0.00022464,7]
[358609307,1745309455722,-723.610947,0.00022464,7]
[358609308,1745309455731,-590.430408,0.00022464,2]
[358609309,1745309455741,-590.430408,0.00022464,2]
[358609310,1745309455751,-151.780132,0.00022465,7]
[358609311,1745309455760,-317.42512229,0.00022465,2]
[358609312,1745309455770,-151.0,0.00022465,7]
[358609313,1745309455781,-500.0,0.00022465,2]
[358609314,1745309455791,-500.0,0.00022465,2]
[358609315,1745309455801,-500.0,0.00022465,2]
[358609316,1745309455810,-500.0,0.00022465,2]
[358609317,1745309455820,-181.11022632,0.00022465,2]
[358609318,1745309455830,-500.0,0.00022465,2]
[358609319,1745309455839,-500.0,0.00022465,2]
[358609320,1745309455850,-500.0,0.00022465,2]
[358609321,1745309455859,-491.467806,0.00022465,7]
[358609322,1745309455870,-474.77744534,0.00022465,2]
[358609323,1745309455880,-491.467806,0.00022465,7]
[358609324,1745309455890,-161.43219572,0.00022465,2]
[358609325,1745309455900,-647.39,0.00022465,2]
[358609326,1745309455910,-500.0,0.00022465,2]
[358609327,1745309455919,-500.0,0.00022465,2]
[358609328,1745309455929,-500.0,0.00022465,2]
[358609329,1745309455939,-175.043122,0.00022465,7]
[358609330,1745309455950,-175.043122,0.00022465,7]
[358609331,1745309455961,-500.0,0.00022465,2]
[358609332,1745309455973,-151.0,0.00022465,7]
[358609333,1745309455984,-152.541535,0.00022465,7]
[358609334,1745309455994,-500.0,0.00022465,2]
[358609335,1745309456005,-500.0,0.00022465,2]
[358609336,1745309456015,-151.0,0.00022465,7]
[358609337,1745309456026,-155.540983,0.00022465,7]
[358609338,1745309456036,-500.0,0.00022465,2]
[358609339,1745309456047,-500.0,0.00022465,2]
[358609340,1745309456057,-500.0,0.00022465,2]
[358609341,1745309456068,-151.0,0.00022465,7]
[358609342,1745309456078,-151.0,0.00022465,7]
[358609343,1745309456089,-500.0,0.00022465,2]
[358609344,1745309456101,-1511.613239,0.00022465,7]
[358609345,1745309456111,-1511.613239,0.00022465,7]
[358609346,1745309456121,-503.88305943,0.00022465,2]
[358609347,1745309456130,-500.0,0.00022465,2]
[358609348,1745309456150,-504.88720569,0.00022465,2]
[358609349,1745309456160,-500.0,0.00022465,2]
[358609350,1745309456170,-500.0,0.00022465,2]
[358609351,1745309456180,-151.0,0.00022465,7]
[358609352,1745309456190,-151.0,0.00022465,7]
[358609353,1745309456200,-500.0,0.00022465,2]
[358609354,1745309456210,-500.0,0.00022465,2]
[358609355,1745309456220,-189.26446,0.00022465,7]
[358609356,1745309456230,-219.395118,0.00022465,7]
[358609357,1745309456240,-219.395118,0.00022465,7]
[358609358,1745309456250,-219.395118,0.00022465,7]
[358609359,1745309456260,-219.395118,0.00022465,7]
[358609360,1745309456269,-500.0,0.00022465,2]
[358609361,1745309456280,-420.75450666,0.00022465,2]
[358609362,1745309456289,-500.0,0.00022465,2]
[358609363,1745309456299,-151.0,0.00022465,7]
[358609364,1745309456310,-151.0,0.00022465,7]
[358609365,1745309456319,-500.0,0.00022465,2]
[358609366,1745309456331,-505.46635129,0.00022465,2]
[358609367,1745309456340,-501.14097144,0.00022465,2]
[358609368,1745309456351,-500.0,0.00022465,2]
[358609369,1745309456361,-500.0,0.00022465,2]
[358609370,1745309456370,-500.0,0.00022465,2]
[358609371,1745309456380,-500.0,0.00022465,2]
[358609372,1745309456389,-502.73274022,0.00022465,2]
[358609373,1745309456398,-500.0,0.00022465,2]
[358609374,1745309456408,-505.77154653,0.00022465,2]
[358609375,1745309456421,-500.0,0.00022465,2]
[358609376,1745309456430,-500.0,0.00022465,2]
[358609377,1745309456439,-151.0,0.00022465,7]
[358609378,1745309456449,-154.035134,0.00022465,7]
[358609379,1745309456459,-500.0,0.00022465,2]
[358609380,1745309456469,-500.0,0.00022465,2]
[358609381,1745309456479,-500.0,0.00022465,2]
[358609382,1745309456489,-500.0,0.00022465,2]
[358609383,1745309456498,-500.0,0.00022465,2]
[358609384,1745309456508,-500.0,0.00022465,2]
[358609385,1745309456518,-503.99247441,0.00022465,2]
[358609386,1745309456527,-500.0,0.00022465,2]
[358609387,1745309456537,-500.0,0.00022465,2]
[358609388,1745309456547,-500.0,0.00022465,2]
[358609389,1745309456557,-151.0,0.00022465,7]
[358609390,1745309456567,-500.0,0.00022465,2]
[358609391,1745309456577,-151.0,0.00022465,7]